fUST/lending_fUST_20250731
["ID","MTS","AMOUNT","RATE_DAILY","PERIOD"]
[376397083,1753963872354,-288.913211,0.00026533,7]
[376397084,1753963872363,-288.913211,0.00026533,7]
[376397085,1753963872372,-288.913211,0.00026533,7]
[376397086,1753963872381,-288.913215,0.00026533,7]
[376397087,1753963872390,-1310.07259,0.00026533,7]
[376397088,1753963872398,-1310.07259,0.00026533,7]
[376397089,1753963872407,-1310.07259,0.00026533,7]
[376397090,1753963872416,-1310.07259,0.00026533,7]
[376397091,1753963872426,-1310.07259,0.00026533,7]
[376397092,1753963872436,-1310.07259,0.00026533,7]
[376397093,1753963872446,-1310.07259,0.00026533,7]
[376397094,1753963872455,-1310.07259,0.00026533,7]
[376397095,1753963872465,-1310.07259,0.00026533,7]
[376397096,1753963872474,-1310.07258,0.00026533,7]
[376397097,1753963872483,-151.0,0.00026545,7]
[376397098,1753963872492,-151.0,0.00026545,7]
[376397099,1753963872502,-151.0,0.00026545,7]
[376397100,1753963872511,-151.0,0.00026545,7]
[376397101,1753963872520,-185.507741,0.00026545,7]
[376397102,1753963872530,-151.0,0.00026546,7]
[376397103,1753963872540,-151.0,0.00026549,7]
[376397104,1753963872549,-250.685226,0.00026549,7]
[376397105,1753963872559,-244.656716,0.00026549,7]
[376397106,1753963872568,-244.656716,0.00026549,7]
[376397107,1753963872577,-244.656716,0.00026549,7]
[376397108,1753963872586,-244.656718,0.00026549,7]
[376397109,1753963872596,-235.201776,0.0002657,7]
[376397110,1753963872605,-235.201776,0.0002657,7]
[376397111,1753963872614,-235.201776,0.0002657,7]
[376397112,1753963872624,-235.201774,0.0002657,7]
[376397113,1753963872632,-167.438189,0.0002657,7]
[376397114,1753963872642,-500.0,0.00026576,2]
[376397115,1753963872651,-151.0,0.00026576,2]
[376397116,1753963872660,-520.11712398,0.00026576,2]
[376397117,1753963872669,-151.0,0.00026576,2]
[376397118,1753963872678,-500.0,0.00026576,2]
[376397119,1753963872688,-151.0,0.00026576,2]
[376397120,1753963872697,-151.0,0.00026576,2]
[376397121,1753963872707,-500.0,0.00026576,2]
[376397122,1753963872717,-500.0,0.00026576,2]
[376397123,1753963872726,-500.0,0.00026576,2]
[376397124,1753963872735,-500.0,0.00026576,2]
[376397125,1753963872744,-152.6791758,0.00026576,2]
[376397126,1753963872754,-500.0,0.00026576,2]
[376397127,1753963872763,-500.0,0.00026576,2]
[376397128,1753963872772,-151.0,0.00026576,2]
[376397129,1753963872782,-151.0,0.00026576,2]
[376397130,1753963872792,-1693448.74051385,0.00026579,20]
[376397131,1753963872951,-1164.0,0.00026579,20]
[376397132,1753963872963,-454.88383167,0.00026579,20]
[376397133,1753963872974,-3139.60268694,0.00026579,20]
[376397134,1753963872985,-322497.84856979,0.00026579,20]
[376397135,1753963872997,-2064.5055936,0.00026579,20]
[376397136,1753963873023,-253.29003,0.00021095,2]
[376397137,1753963873475,-3947.16722184,0.00018978,2]
[376397138,1753963873486,-5862.71,0.00019178,2]
[376397139,1753963873495,-5862.71,0.00019178,2]
[376397140,1753963873504,-5862.71,0.00019178,2]
[376397141,1753963873514,-460.0,0.00019178,2]
[376397142,1753963873523,-5862.71,0.00019178,2]
[376397143,1753963873532,-5862.71,0.00019178,2]
[376397144,1753963873542,-5862.71,0.00019178,2]
[376397145,1753963873551,-5862.71,0.00019178,2]
[376397146,1753963873560,-5862.71,0.00019178,2]
[376397147,1753963873569,-5862.71,0.00019178,2]
[376397148,1753963873579,-5862.71,0.00019178,2]
[376397149,1753963873588,-460.0,0.00019178,2]
[376397150,1753963873597,-5862.71,0.00019178,2]
[376397151,1753963873607,-5862.71,0.00019178,2]
[376397152,1753963873616,-460.0,0.00019452,2]
[376397153,1753963873626,-460.0,0.00019726,2]
[376397154,1753963873636,-1476.44,0.00020273,2]
[376397155,1753963873645,-151.0,0.00020546,2]
[376397156,1753963873654,-151.0,0.00020546,2]
[376397157,1753963873663,-151.0,0.00020546,2]
[376397158,1753963873672,-151.0,0.00020546,2]
[376397159,1753963873682,-151.0,0.00020546,2]
[376397160,1753963873691,-460.0,0.00020547,2]
[376397161,1753963873700,-1476.44,0.00020547,2]
[376397162,1753963873710,-460.0,0.00020547,2]
[376397163,1753963873719,-460.0,0.00020547,2]
[376397164,1753963873728,-205.13587426,0.00020821,2]
[376397165,1753963873738,-1476.44,0.00020821,2]
[376397166,1753963873747,-460.0,0.00020821,2]
[376397167,1753963873756,-460.0,0.00020821,2]
[376397168,1753963873766,-206.70997,0.00021095,2]
[376397169,1753963873775,-1476.44,0.00021095,2]
[376397170,1753963873784,-233.58690594,0.00021095,2]
[376397171,1753963873795,-460.0,0.00021095,2]
[376397172,1753963873804,-460.0,0.00021369,2]
[376397173,1753963873814,-1476.44,0.00021369,2]
[376397174,1753963873823,-460.0,0.00021369,2]
[376397175,1753963873833,-460.0,0.00021643,2]
[376397176,1753963873843,-1476.44,0.00021643,2]
[376397177,1753963873853,-460.0,0.00021643,2]
[376397178,1753963873863,-460.0,0.00021917,2]
[376397179,1753963873872,-1476.44,0.00021917,2]
[376397180,1753963873880,-460.0,0.00021917,2]
[376397181,1753963873890,-460.0,0.00022191,2]
[376397182,1753963873899,-1476.44,0.00022191,2]
[376397183,1753963873908,-556.04,0.00022191,2]
[376397184,1753963873918,-460.0,0.00022465,2]
[376397185,1753963873927,-1476.44,0.00022465,2]
[376397186,1753963873937,-460.0,0.00022739,2]
[376397187,1753963873947,-1476.44,0.00022739,2]
[376397188,1753963873957,-419.65020959,0.00023013,2]
[376397189,1753963874057,-1476.44,0.00023013,2]
[376397190,1753963874067,-1476.44,0.00023287,2]
[376397191,1753963874076,-1476.44,0.00023561,2]
[376397192,1753963874085,-1476.44,0.00023835,2]
[376397193,1753963874095,-1476.44,0.00024109,2]
[376397194,1753963874105,-1476.44,0.00024383,2]
[376397195,1753963874114,-152.44944885,0.00026302,2]
[376397196,1753963874123,-196332.11610144,0.00026579,20]
[376397197,1753963874136,-1564133.2693121,0.00026579,20]
[376397198,1753963874147,-470.02618797,0.00026579,20]
[376397199,1753963874158,-1222.39634548,0.00026579,20]
[376397200,1753963874170,-2104.31727418,0.00026579,20]
[376397201,1753963874186,-571.66105847,0.00019178,2]
[376397202,1753963874195,-49.25728344,0.00026579,20]
[376397203,1753963874355,-556.82861536,0.00018973,2]
[376397204,1753963874364,-3947.1672218,0.00019003,2]
[376397205,1753963874373,-3947.1672218,0.00019028,2]
[376397206,1753963874382,-249.73210275,0.00019076,2]
[376397207,1753963874393,-5862.71,0.00019178,2]
[376397208,1753963874404,-5862.71,0.00019178,2]
[376397209,1753963874414,-2265.82131191,0.00019178,2]
[376397210,1753963874426,-279.27843129,0.00019178,2]
[376397211,1753963874437,-1909.17523999,0.00019178,2]
[376397212,1753963889587,4541.76892103,0.00018245,2]
[376397213,1753963889610,10000.0,0.00018245,2]
[376397214,1753963889633,10000.0,0.00018245,2]
[376397215,1753963889655,358.23107897,0.00018245,2]
[376397216,1753963903702,5000.0,0.000188,2]
[376397217,1753963920146,4641.76892103,0.000188,2]
[376397218,1753963920171,358.23107897,0.000188,2]
[376397219,1753963936779,5000.0,0.000188,2]
[376397220,1753963952559,172.45504494,0.000188,2]
[376397222,1753964108968,278.436649,0.00018152,2]
[376397225,1753964328073,219.56916064,0.00026027,120]
[376397227,1753964365593,207.9940437,0.000181,2]
[376397228,1753964602512,274.919111,0.00013699,2]
[376397229,1753964603606,-395.0,0.00026506,60]
[376397230,1753964603634,-2592.39845826,0.00026506,60]
[376397231,1753964603663,-1686.71623844,0.00026506,60]
[376397232,1753964603694,-561.85892278,0.00026506,60]
[376397233,1753964603723,-615.60644278,0.00026506,60]
[376397234,1753964603751,-299.999999,0.00026506,120]
[376397235,1753964603783,-1921276.22674497,0.00026506,120]
[376398750,1753964891865,2534.0,0.00026027,120]
[376398791,1753964953488,3707.96407239,0.00017963,2]
[376398792,1753964953511,9899.18879101,0.00017963,2]
[376398800,1753964967596,100.81120899,0.00018776,2]
[376398801,1753964967619,60.62070031,0.00018776,2]
[376398802,1753964970619,5000.0,0.000188,2]
[376398805,1753964988344,4939.37929969,0.000188,2]
[376398806,1753964988367,60.62070031,0.000188,2]
[376398815,1753965004602,5000.0,0.000188,2]
[376398818,1753965020304,4939.37929969,0.000188,2]
[376398819,1753965020327,60.62070031,0.000188,2]
[376398850,1753965032358,-497.46899884,0.00018876,2]
[376398851,1753965032415,-2074.64515774,0.00018876,2]
[376398852,1753965032424,-1795.35483926,0.000189,2]
[376398854,1753965035800,5000.0,0.000188,2]
[376398862,1753965038541,-539.33405489,0.000189,2]
[376398863,1753965038550,-2572.11415657,0.00018927,2]
[376398864,1753965038559,-300.0,0.00018965,2]
[376398865,1753965038568,-300.0,0.00018965,2]
[376398866,1753965038577,-300.0,0.00018965,2]
[376398867,1753965038587,-1200.0,0.00018965,2]
[376398868,1753965038596,-300.0,0.00018965,2]
[376398869,1753965038609,-445.99,0.00018966,3]
[376398870,1753965038631,-223.0,0.00018966,3]
[376398871,1753965038650,-669.01,0.00018966,3]
[376398872,1753965038673,-500.0,0.00018973,2]
[376398873,1753965038697,-500.0,0.00018973,2]
[376398874,1753965038718,-532.64514499,0.00018973,2]
[376398875,1753965038742,-500.0,0.00018973,2]
[376398876,1753965038765,-500.0,0.00018973,2]
[376398877,1753965038785,-500.0,0.00018973,2]
[376398878,1753965038806,-500.0,0.00018973,2]
[376398879,1753965038824,-500.86348484,0.00018973,2]
[376398880,1753965038847,-500.0,0.00018973,2]
[376398881,1753965038870,-500.0,0.00018973,2]
[376398882,1753965038892,-500.0,0.00018973,2]
[376398883,1753965038915,-954.78197401,0.00018975,2]
[376398884,1753965038941,-954.78197401,0.00018975,2]
[376398885,1753965038958,-500.0,0.00018975,2]
[376398886,1753965038969,-954.78197401,0.00018975,2]
[376398887,1753965038982,-325.73515764,0.00018975,2]
[376398888,1753965038994,-954.78197401,0.00018975,2]
[376398889,1753965039014,-954.78197401,0.00018975,2]
[376398890,1753965039026,-954.78197401,0.00018975,2]
[376398891,1753965039040,-954.78197401,0.00018975,2]
[376398892,1753965039052,-954.78197401,0.00018975,2]
[376398893,1753965039063,-954.78197401,0.00018975,2]
[376398894,1753965039074,-954.78197401,0.00018975,2]
[376398895,1753965039085,-954.78197401,0.00018975,2]
[376398896,1753965039095,-954.78197401,0.00018975,2]
[376398897,1753965039105,-954.78197401,0.00018975,2]
[376398898,1753965039116,-954.78197401,0.00018975,2]
[376398899,1753965039127,-954.78197401,0.00018975,2]
[376398900,1753965039137,-954.78197401,0.00018975,2]
[376398901,1753965039147,-954.78197401,0.00018975,2]
[376398902,1753965039157,-954.78197401,0.00018975,2]
[376398903,1753965039167,-954.78197401,0.00018975,2]
[376398904,1753965039177,-954.78197401,0.00018975,2]
[376398905,1753965039187,-954.78197401,0.00018975,2]
[376398906,1753965039197,-954.78197401,0.00018975,2]
[376398907,1753965039206,-954.78197401,0.00018975,2]
[376398908,1753965039216,-954.78197401,0.00018975,2]
[376398909,1753965039228,-1002.52107271,0.00018975,2]
[376398910,1753965039237,-1002.52107271,0.00018975,2]
[376398911,1753965039252,-1002.52107271,0.00018975,2]
[376398912,1753965039261,-1002.52107271,0.00018975,2]
[376398913,1753965039272,-1002.52107271,0.00018975,2]
[376398914,1753965039281,-1002.52107271,0.00018975,2]
[376398915,1753965039291,-263384.82992049,0.00018976,2]
[376399203,1753965125771,4939.37929969,0.00017989,2]
[376399204,1753965125796,10000.0,0.00017989,2]
[376399205,1753965125819,9960.62070031,0.00017989,2]
[376399206,1753965141947,39.37929969,0.000188,2]
[376399207,1753965141971,4960.62070031,0.000188,2]
[376399211,1753965157554,5000.0,0.000188,2]
[376399212,1753965173649,39.37929969,0.000188,2]
[376399213,1753965173677,4960.62070031,0.000188,2]
[376399217,1753965192749,5000.0,0.000188,2]
[376399219,1753965200775,39.37929969,0.000188,2]
[376399220,1753965200797,214.60915475,0.000188,2]
[376399221,1753965209656,4077.48024205,0.000188,2]
[376399222,1753965214145,177.58800994,0.00018776,2]
[376399226,1753965225031,3412.32702507,0.000188,2]
[376399227,1753965241554,1960.35934797,0.000188,2]
[376399228,1753965241908,157.63622022,0.0001831,2]
[376399229,1753965241934,471.85349638,0.0001831,2]
[376399230,1753965242271,314.7448583,0.00018403,2]
[376399231,1753965257787,3039.64065203,0.000188,2]
[376399234,1753965315484,177.58800991,0.00018774,2]
[376399235,1753965315943,177.58800991,0.00018775,2]
[376399236,1753965316334,177.58800991,0.00018775,2]
[376399237,1753965319017,245.348934,0.000179,2]
[376399242,1753965493145,177.779812,0.00018043,2]
[376399244,1753965541107,2057.69132528,0.000188,2]
[376399245,1753965543509,251.79588664,0.00018309,2]
[376399247,1753965579218,2908.38100564,0.000188,2]
[376399248,1753965579241,3193.49298815,0.000188,2]
[376399249,1753965608112,657.29913622,0.00018775,2]
[376399267,1753965744736,298.346264,0.00013699,2]
[376399272,1753965839157,5850.86161163,0.000188,2]
[376399273,1753965839180,1208.44496354,0.000188,2]
[376399274,1753965881379,1694.80174304,0.000188,2]
[376399275,1753965920163,7096.75329342,0.00017873,2]
[376399276,1753965920185,5642.42741628,0.00017873,2]
[376399277,1753965923836,2691.73655488,0.000188,2]
[376399279,1753965939378,1665.83602884,0.000188,2]
[376399280,1753965939400,481.69897184,0.000188,2]
[376399282,1753966099636,4706.20438346,0.000188,2]
[376399285,1753966145974,230.45283986,0.000183,2]
[376399287,1753966153049,4581.64380484,0.0001787,2]
[376399288,1753966153073,10000.0,0.0001787,2]
[376399289,1753966153096,10000.0,0.0001787,2]
[376399290,1753966153119,318.35619516,0.0001787,2]
[376399291,1753966157860,166.0,0.0001787,2]
[376399293,1753966190565,200.78056652,0.00018764,2]
[376399294,1753966191015,200.78056652,0.0001877,2]
[376399295,1753966221866,1355.84139444,0.000188,2]
[376399296,1753966222835,1039.99066841,0.000188,2]
[376399344,1753966232291,-729.87,0.00018864,2]
[376399357,1753966232346,-387.45004,0.00018864,2]
[376399380,1753966232530,-82.67996,0.00018864,2]
[376399383,1753966232541,-1200.0,0.00018865,2]
[376399387,1753966232551,-201.7252722,0.00018865,2]
[376399389,1753966232562,-98.2747278,0.00018865,2]
[376399391,1753966232572,-300.0,0.00018865,2]
[376399393,1753966232581,-300.0,0.00018865,2]
[376399395,1753966232591,-105.52358341,0.00018865,2]
[376399396,1753966232603,-194.47641659,0.00018865,2]
[376399398,1753966232612,-1183.82350636,0.00018866,3]
[376399549,1753966238436,-1039.99066841,0.00018865,2]
[376399551,1753966238446,-425.55649364,0.00018866,3]
[376399553,1753966238456,-804.69,0.00018866,3]
[376399555,1753966238465,-402.35,0.00018866,3]
[376399557,1753966238474,-201.17,0.00018866,3]
[376399559,1753966238484,-603.56,0.00018866,3]
[376399561,1753966238494,-4595.85182268,0.00018866,2]
[376399563,1753966238506,-455.18249544,0.00018866,2]
[376399565,1753966238517,-2998.44269599,0.00018866,2]
[376399567,1753966238532,-652.66070144,0.00018866,2]
[376399585,1753966238713,-4542.73633249,0.00018866,2]
[376399602,1753966238880,-11433.18447852,0.00018866,2]
[376399604,1753966238890,-160.0,0.00018869,2]
[376399606,1753966238899,-1355.84139443,0.0001887,2]
[376399608,1753966238909,-1056.8952407,0.00018875,2]
[376399610,1753966238918,-500.0,0.00018875,2]
[376399612,1753966238927,-1056.8952407,0.00018875,2]
[376399614,1753966238937,-1056.8952407,0.00018875,2]
[376399616,1753966238947,-380.81683255,0.00018875,2]
[376399618,1753966238956,-1056.8952407,0.00018875,2]
[376399619,1753966238966,-1056.8952407,0.00018875,2]
[376399621,1753966238975,-1056.8952407,0.00018875,2]
[376399623,1753966238984,-1056.8952407,0.00018875,2]
[376399625,1753966238994,-1056.8952407,0.00018875,2]
[376399627,1753966239003,-1056.8952407,0.00018875,2]
[376399629,1753966239012,-1056.8952407,0.00018875,2]
[376399631,1753966239022,-1056.8952407,0.00018875,2]
[376399633,1753966239033,-1056.8952407,0.00018875,2]
[376399635,1753966239042,-1056.8952407,0.00018875,2]
[376399638,1753966239052,-1056.8952407,0.00018875,2]
[376399640,1753966239061,-1056.8952407,0.00018875,2]
[376399642,1753966239071,-1056.8952407,0.00018875,2]
[376399644,1753966239080,-1056.8952407,0.00018875,2]
[376399645,1753966239089,-1056.8952407,0.00018875,2]
[376399648,1753966239102,-1056.8952407,0.00018875,2]
[376399650,1753966239111,-1056.8952407,0.00018875,2]
[376399652,1753966239121,-1109.74000273,0.00018875,2]
[376399653,1753966239130,-1109.74000273,0.00018875,2]
[376399655,1753966239140,-1109.74000273,0.00018875,2]
[376399657,1753966239150,-1109.74000273,0.00018875,2]
[376399659,1753966239161,-1109.74000273,0.00018875,2]
[376399661,1753966239170,-1109.74000273,0.00018875,2]
[376399663,1753966239179,-1109.74000273,0.00018875,2]
[376399665,1753966239189,-253.13765841,0.00018875,2]
[376399667,1753966239198,-176.59308207,0.00018875,2]
[376399669,1753966239207,-275995.61164533,0.00018876,2]
[376399672,1753966239221,-4712.77676424,0.00018876,2]
[376399673,1753966239233,-5056.85840394,0.00018876,2]
[376399676,1753966239249,-2920.7986083,0.00018876,2]
[376399678,1753966239261,-7838.56611319,0.00018876,2]
[376399680,1753966239272,-73475.388465,0.00018876,2]
[376399682,1753966239282,-3260.06627714,0.000189,2]
[376399684,1753966239292,-6054.88342089,0.000189,2]
[376399686,1753966239301,-1355.84139443,0.00018939,2]
[376399688,1753966239310,-1355.84139443,0.00019009,2]
[376399690,1753966239319,-500.0,0.00019048,2]
[376399691,1753966239329,-286.0,0.00019048,2]
[376399693,1753966239338,-1355.84139443,0.00019078,2]
[376399695,1753966239348,-4700.4328443,0.00019107,2]
[376399697,1753966239363,-1354.45057649,0.00019107,2]
[376399699,1753966239373,-408.94029229,0.0001915,2]
[376399701,1753966239382,-1355.46186417,0.00019172,2]
[376399703,1753966239392,-500.0,0.00019173,2]
[376399705,1753966239403,-500.0,0.00019173,2]
[376399707,1753966239414,-500.0,0.00019173,2]
[376399709,1753966239423,-500.0,0.00019173,2]
[376399711,1753966239434,-133.20623476,0.00019173,2]
[376399713,1753966239446,-199.84668828,0.00019173,2]
[376399715,1753966239456,-228.7954114,0.00019173,2]
[376399717,1753966239466,-502.28552133,0.00019173,2]
[376399719,1753966239476,-500.76187271,0.00019173,2]
[376399720,1753966239487,-500.0,0.00019173,2]
[376399722,1753966239497,-500.0,0.00019173,2]
[376399724,1753966239507,-171.44813545,0.00019173,2]
[376399726,1753966239517,-502.53665721,0.00019173,2]
[376399728,1753966239527,-500.0,0.00019173,2]
[376399730,1753966239536,-500.0,0.00019173,2]
[376399732,1753966239545,-500.0,0.00019173,2]
[376399735,1753966239555,-531.81224926,0.00019173,2]
[376399738,1753966239567,-500.0,0.00019173,2]
[376399740,1753966239577,-500.0,0.00019173,2]
[376399742,1753966239586,-500.0,0.00019173,2]
[376399743,1753966239595,-500.0,0.00019173,2]
[376399744,1753966239604,-500.0,0.00019173,2]
[376399745,1753966239613,-500.0,0.00019173,2]
[376399746,1753966239622,-532.64514499,0.00019173,2]
[376399748,1753966239631,-512.58752256,0.00019173,2]
[376399750,1753966239640,-500.0,0.00019173,2]
[376399751,1753966239649,-500.0,0.00019173,2]
[376399752,1753966239659,-500.86348484,0.00019173,2]
[376399753,1753966239668,-500.0,0.00019173,2]
[376399754,1753966239677,-501.99621775,0.00019173,2]
[376399756,1753966239687,-500.0,0.00019173,2]
[376399757,1753966239696,-500.0,0.00019173,2]
[376399759,1753966239705,-502.29650842,0.00019173,2]
[376399760,1753966239715,-502.94869412,0.00019173,2]
[376399761,1753966239724,-461.72670808,0.00019178,2]
[376399762,1753966239734,-460.79524971,0.00019178,2]
[376399763,1753966239743,-460.0,0.00019178,2]
[376399764,1753966239752,-469.80166932,0.00019178,2]
[376399765,1753966239762,-460.94049731,0.00019178,2]
[376399767,1753966239771,-460.0,0.00019178,2]
[376399768,1753966239781,-460.0,0.00019178,2]
[376399769,1753966239790,-461.50428638,0.00019178,2]
[376399770,1753966239799,-460.0,0.00019178,2]
[376399771,1753966239809,-460.0,0.00019178,2]
[376399772,1753966239818,-460.0,0.00019178,2]
[376399773,1753966239830,-460.0,0.00019178,2]
[376399774,1753966239840,-594.54946752,0.00019178,2]
[376399775,1753966239849,-450.32182955,0.00019178,2]
[376399776,1753966239862,-9.67817045,0.00019178,2]
[376399777,1753966239871,-461.34808089,0.00019178,2]
[376399778,1753966239880,-460.83514531,0.00019178,2]
[376399779,1753966239889,-251.64256402,0.00019178,2]
[376399780,1753966239898,-460.0,0.00019178,2]
[376399782,1753966239908,-460.0,0.00019178,2]
[376399783,1753966239917,-460.0,0.00019178,2]
[376399784,1753966239926,-460.0,0.00019178,2]
[376399786,1753966239936,-460.99574746,0.00019178,2]
[376399787,1753966239945,-277.04636752,0.00019178,2]
[376399789,1753966239955,-460.0,0.00019178,2]
[376399790,1753966239964,-460.0,0.00019178,2]
[376399792,1753966239973,-460.0,0.00019178,2]
[376399794,1753966239983,-461.22631079,0.00019178,2]
[376399796,1753966239992,-461.41707028,0.00019178,2]
[376399798,1753966240002,-463.11077342,0.00019178,2]
[376399801,1753966240014,-508.72376685,0.00019178,2]
[376399802,1753966240023,-460.0,0.00019178,2]
[376399805,1753966240035,-460.46552771,0.00019178,2]
[376399807,1753966240044,-460.0,0.00019178,2]
[376399809,1753966240053,-161.55906127,0.00019178,2]
[376399832,1753966240519,-151.0,0.000191,2]
[376399833,1753966240530,-298.44093873,0.00019178,2]
[376399834,1753966240539,-460.0,0.00019178,2]
[376399835,1753966240549,-460.0,0.00019178,2]
[376399836,1753966240558,-7.11287127,0.00019178,2]
[376399837,1753966240570,-452.88712873,0.00019178,2]
[376399838,1753966240579,-460.0,0.00019178,2]
[376399839,1753966240588,-461.44497412,0.00019178,2]
[376399840,1753966240597,-263.66478046,0.00019178,2]
[376399841,1753966240607,-460.0,0.00019178,2]
[376399842,1753966240616,-460.0,0.00019178,2]
[376399843,1753966240625,-460.0,0.00019178,2]
[376399844,1753966240635,-430.18825267,0.00019178,2]
[376399845,1753966240646,-29.81174733,0.00019178,2]
[376399846,1753966240655,-291.62022075,0.00019178,2]
[376399847,1753966240666,-168.37977925,0.00019178,2]
[376399848,1753966240675,-460.0,0.00019178,2]
[376399849,1753966240684,-460.0,0.00019178,2]
[376399850,1753966240693,-460.0,0.00019178,2]
[376399851,1753966240701,-390.42022075,0.00019178,2]
[376399852,1753966240713,-69.57977925,0.00019178,2]
[376399853,1753966240722,-460.0,0.00019178,2]
[376399854,1753966240730,-166.92746363,0.00019178,2]
[376399855,1753966240739,-460.0,0.00019178,2]
[376399856,1753966240748,-460.0,0.00019178,2]
[376399857,1753966240757,-239.39908886,0.00019178,2]
[376399858,1753966240766,-460.0,0.00019178,2]
[376399859,1753966240935,-460.0,0.00019178,2]
[376399860,1753966240945,-460.0,0.00019178,2]
[376399861,1753966240955,-460.0,0.00019178,2]
[376399862,1753966240966,-460.65781753,0.00019178,2]
[376399863,1753966240975,-460.0,0.00019178,2]
[376399864,1753966240984,-460.0,0.00019178,2]
[376399865,1753966240993,-460.0,0.00019178,2]
[376399866,1753966241002,-461.02281508,0.00019178,2]
[376399867,1753966241012,-460.0,0.00019178,2]
[376399868,1753966241022,-460.49701878,0.00019178,2]
[376399869,1753966241033,-461.37944235,0.00019178,2]
[376399870,1753966241043,-463.52771179,0.00019178,2]
[376399871,1753966241053,-460.0,0.00019178,2]
[376399872,1753966241062,-461.68726973,0.00019178,2]
[376399873,1753966241072,-460.0,0.00019178,2]
[376399874,1753966241081,-313.60293461,0.00019178,2]
[376399875,1753966241091,-422.18574198,0.00019178,2]
[376399876,1753966241104,-67.13761966,0.00019178,2]
[376399877,1753966241113,-452.28572233,0.00019178,2]
[376399878,1753966241124,-8.88774875,0.00019178,2]
[376399879,1753966241135,-460.0,0.00019178,2]
[376399880,1753966241144,-21.83207869,0.00019178,2]
[376399881,1753966241156,-438.16792131,0.00019178,2]
[376399882,1753966241165,-460.0,0.00019178,2]
[376399883,1753966241175,-460.0,0.00019178,2]
[376399884,1753966241185,-460.0,0.00019178,2]
[376399885,1753966241194,-243.17367037,0.00019178,2]
[376399886,1753966241203,-460.0,0.00019178,2]
[376399887,1753966241213,-461.27481302,0.00019178,2]
[376399888,1753966241223,-460.0,0.00019178,2]
[376399889,1753966241233,-460.0,0.00019178,2]
[376399890,1753966241242,-207.06461992,0.00019178,2]
[376399891,1753966241252,-464.92494187,0.00019178,2]
[376399892,1753966241261,-529.79946838,0.00019178,2]
[376399893,1753966241270,-460.0,0.00019178,2]
[376399894,1753966241280,-461.72628164,0.00019178,2]
[376399895,1753966241289,-460.0,0.00019178,2]
[376399896,1753966241299,-462.35745088,0.00019178,2]
[376399897,1753966241309,-461.2440894,0.00019178,2]
[376399898,1753966241318,-462.37036742,0.00019178,2]
[376399899,1753966241328,-462.51841619,0.00019178,2]
[376399900,1753966241337,-460.0,0.00019178,2]
[376399901,1753966241346,-463.54112199,0.00019178,2]
[376399902,1753966241357,-462.24178609,0.00019178,2]
[376399903,1753966241367,-460.0,0.00019178,2]
[376399904,1753966241376,-475.60037922,0.00019178,2]
[376399905,1753966241386,-460.0,0.00019178,2]
[376399906,1753966241395,-462.70588176,0.00019178,2]
[376399907,1753966241404,-460.0,0.00019178,2]
[376399908,1753966241414,-460.0,0.00019178,2]
[376399909,1753966241423,-460.0,0.00019178,2]
[376399910,1753966241432,-461.59944253,0.00019178,2]
[376399911,1753966241442,-460.0,0.00019178,2]
[376399912,1753966241451,-463.79003503,0.00019178,2]
[376399913,1753966241461,-460.0,0.00019178,2]
[376399914,1753966241470,-460.0,0.00019178,2]
[376399915,1753966241479,-460.0,0.00019178,2]
[376399916,1753966241489,-1003.21411336,0.00019178,2]
[376399917,1753966241499,-470.43900464,0.00019178,2]
[376399918,1753966241508,-460.0,0.00019178,2]
[376399919,1753966241519,-460.0,0.00019178,2]
[376399920,1753966241528,-576.9501712,0.00019178,2]
[376399921,1753966241538,-462.03044001,0.00019178,2]
[376399922,1753966241547,-460.0,0.00019178,2]